Cogmind - Beta 17 @@@ ROGUE MODE // 2026.07.03 @ 19:54:38 Player: TheSkyeDoctor Result: Destroyed by Y-45 Defender with Heavy Assault Rifle Performance ------------- Evolutions (2) 1000 Regions Visited (5) 1000 Robots Destroyed (55) 275 Value Destroyed (1537) 1537 Prototype IDs (1) 20 Alien Tech Used (0) 0 Bonus (295) 295 TOTAL SCORE: 4127 Bonus ------- High Alert Combat Kills 288 Follower Combat Kills 7 Cogmind --------- Core Integrity 0/550 Matter 70/300 Energy 32/100 System Corruption 0% Temperature Cool (9) Movement Treading (160) Location -8/Materials Parts ------- > --- POWER (1) -------- (None) > --- PROPULSION (3) --- Medium Treads > --- UTILITY (3) ------ Advanced Visual Processing Unit Signal Interpreter Improved Signal Interpreter > --- WEAPON (4) ------- (None) > --- INVENTORY (5) ---- Improved Heat Sink Experimental Sensor Array Advanced Targeting Computer Improved Propulsion Shielding Light Armor Plating Peak State ------------ > --- POWER ------------ Light Angular Momentum Engine > --- PROPULSION ------- Wheel Wheel > --- UTILITY ---------- Small Storage Unit Experimental Sensor Array Signal Interpreter > --- WEAPON ----------- Ion Cannon Ion Cannon Ion Cannon Ion Cannon > --- INVENTORY -------- Improved Heat Sink High-capacity Matter Pod Improved Terrain Scanner Seismic Detector Advanced Targeting Computer Improved Propulsion Shielding Light Armor Plating [Rating: 31] Favorites ----------- Power Ion Engine Engine Ion Engine Propulsion Light Treads Treads Light Treads Wheel Wheel Utility Signal Interpreter Device Seismic Detector Storage Small Storage Unit Processor Signal Interpreter Weapon Beam Cannon Energy Gun EM Pulse Gun Energy Cannon Beam Cannon Ballistic Gun Assault Rifle Launcher Heavy Rocket Launcher Build | -11 -10 -10 -10 -9 -8 ------- Run | Yrd Mat Min Exi Min Mat Slots Evolved 4 | . . . . . 4 Power . | . . . . . . Propulsion 1 | . . . . . 1 Utility 1 | . . . . . 1 Weapon 2 | . . . . . 2 Parts Attached 32 | 8 3 2 . 3 16 Power 4 | 2 . 1 . . 1 Engine 4 | 2 . 1 . . 1 Core . | . . . . . . Reactor . | . . . . . . Propulsion 9 | 2 1 . . 2 4 Treads 7 | 2 1 . . . 4 Leg . | . . . . . . Wheel 2 | . . . . 2 . Hover . | . . . . . . Flight . | . . . . . . Utility 6 | 2 1 . . . 3 Device 2 | 1 . . . . 1 Storage 1 | 1 . . . . . Processor 3 | . 1 . . . 2 Hackware . | . . . . . . Protection . | . . . . . . Artifact . | . . . . . . Weapon 13 | 2 1 1 . 1 8 Energy Gun 1 | 1 . . . . . Energy Cannon 6 | . 1 1 . . 4 Ballistic Gun 1 | 1 . . . . . Ballistic Cannon . | . . . . . . Launcher 5 | . . . . 1 4 Special Weapon . | . . . . . . Impact Weapon . | . . . . . . Slashing Weapon . | . . . . . . Piercing Weapon . | . . . . . . Special Melee Weapon . | . . . . . . Unidentified Prototypes 1 | . . . . . 1 Parts Lost 16 | . . 1 . 4 11 Power 3 | . . 1 . 1 1 Propulsion 6 | . . . . 1 5 Utility . | . . . . . . Weapon 7 | . . . . 2 5 Highest Loss Streak 5 | . . 1 . 4 5 To Critical Strikes . | . . . . . . Average Backups 6 | 2 6 7 8 7 5 Power . | . 1 . 1 1 . Propulsion . | . 1 1 1 . . Utility 3 | . 1 4 5 5 5 Weapon 1 | . 2 1 1 . . Tool/Special . | . . . . . . Unused Backups 6 | . . . . . 6 Power . | . . . . . . Propulsion . | . . . . . . Utility 6 | . . . . . 6 Weapon . | . . . . . . Tool/Special . | . . . . . . Average Slot Usage (%) 85 | . 94 88 100 76 53 Engine 10 | . 14 13 14 6 . Treads 24 | . 28 28 28 15 13 Wheel 2 | . . . . 12 5 Device 1 | . 2 . . . 2 Storage 12 | . 14 14 14 14 3 Processor 12 | . 11 14 14 14 10 Energy Cannon 16 | . 12 17 28 8 10 Ballistic Gun 3 | . 9 . . . . Launcher 1 | . . . . 3 6 Peak Build Rating 31 | 7 7 8 8 9 31 Average Rating 9 | 5 6 7 8 7 19 On Entrance 6 | . 7 7 8 8 6 Avg Prop Armor Cover (%) 24 | . . . . 24 . Naked Turns . | . . . . . . Heaviest Build 39 | 15 16 16 16 16 39 Greatest Support 84 | 40 40 40 40 40 84 Greatest Overweight (x) 7 | 3 . . . . 7 Average Overweight (x) . | . . . . . . Largest Inventory Capacity 8 | 8 8 8 8 8 8 Average Capacity 7 | 7 8 8 8 8 6 Most Carried 8 | 3 8 8 8 8 8 Average Carried 6 | 2 6 7 8 7 5 Final Capacity 8 | 8 8 8 8 8 5 Final Carried 8 | 3 8 8 8 7 5 Class Distribution -------------------- 90% | Mutant 6% | Gunner Dominant Class ---------------- Mutant | -10/Materials Mutant | -10/Mines Mutant | -10/Exiles Mutant | -9/Mines Mutant | -8/Materials Resources | -11 -10 -10 -10 -9 -8 ----------- Run | Yrd Mat Min Exi Min Mat Matter Collected 755 | 301 163 37 . 27 227 Remotely . | . . . . . . Salvage Created 1350 | 184 446 29 . 14 677 Parts 95 | 18 30 1 . 4 42 Haulers Intercepted 3 | . 2 . . . 1 Recyclers Shooed 1 | . 1 . . . . Parts Field Recycled . | . . . . . . Retrieved Matter . | . . . . . . Parts Self-Destructed . | . . . . . . Prevented . | . . . . . . Parts Restored . | . . . . . . Kills | -11 -10 -10 -10 -9 -8 ------- Run | Yrd Mat Min Exi Min Mat Combat Hostiles Destroyed 30 | . 7 2 . . 21 Guns 1 | . 1 . . . . Cannons 9 | . 6 2 . . 1 AOE 19 | . . . . . 19 Classes Destroyed 15 | 3 4 1 . 1 6 Worker 4 | 1 2 . . . 1 Builder 9 | . . . . 2 7 Tunneler 5 | 4 . . . . 1 Hauler 3 | . 2 . . . 1 Recycler 1 | 1 . . . . . Mechanic 1 | . . . . . 1 Operator 1 | . 1 . . . . Watcher 1 | . 1 . . . . Swarmer 3 | . . 2 . . 1 Grunt 21 | . 7 . . . 14 Brawler 1 | . . . . . 1 Duelist 1 | . . . . . 1 Protector 1 | . . . . . 1 Sentry 1 | . . . . . 1 Hunter 2 | . . . . . 2 Best Kill Streak 16 | 3 3 2 . 2 16 Combat Bots Only 9 | . 2 2 . . 9 Max Kills in Single Turn 4 | 1 1 1 . 1 4 Gunslinging . | . . . . . . Exploded 2 | . . . . . 2 Melee . | . . . . . . Uniques/NPCs Destroyed . | . . . . . . Combat | -11 -10 -10 -10 -9 -8 -------- Run | Yrd Mat Min Exi Min Mat Hostile Shots Fired 293 | . 46 21 . 10 216 Missed 104 | . 13 7 . . 84 Hits 189 | . 33 14 . 10 132 Melee 4 | . . . . . 4 Projectile 185 | . 33 14 . 10 128 AOE 10 | . . . . 10 . Critical Strikes 9 | . 1 . . . 8 Damage Taken 3071 | . 408 115 . 447 2101 Core 800 | . 94 7 . 136 563 Absorbed by Shields . | . . . . . . Core Remaining (%) 52 | 100 . . . 5 . Volleys Fired 93 | 7 48 6 . 4 28 Largest 4 | 2 2 2 . 2 4 Hottest 240 | 60 80 120 . 90 240 Shots Fired 130 | 14 62 11 . 6 37 Gun 28 | 14 14 . . . . Cannon 75 | . 48 11 . 2 14 Launcher 27 | . . . . 4 23 Special . | . . . . . . Kinetic 21 | 7 14 . . . . Thermal 75 | . 48 11 . 2 14 Explosive 27 | . . . . 4 23 Electromagnetic 7 | 7 . . . . . Robot Hit Streak 7 | 6 7 2 . 3 7 Robot Miss Streak 5 | 2 5 2 . 3 5 Penetration Max . | . . . . . . Secondary Targets . | . . . . . . Shots Hit Robots 72 | 8 37 5 . 3 19 Core Hits 84 | 6 16 2 . 9 51 Critical Kills . | . . . . . . Critical Parts Destroyed . | . . . . . . Critical Strikes . | . . . . . . Melee Attacks . | . . . . . . Impact . | . . . . . . Slashing . | . . . . . . Piercing . | . . . . . . Sneak Attacks . | . . . . . . Combat Hostiles . | . . . . . . Follow-up Attacks . | . . . . . . Damage Inflicted 4280 | 106 630 87 . 125 3332 Guns 214 | 106 108 . . . . Cannons 698 | . 522 87 . . 89 Explosions 3368 | . . . . 125 3243 Melee . | . . . . . . Ramming . | . . . . . . Kinetic 133 | 25 108 . . . . Thermal 916 | . 522 87 . . 307 Explosive 3150 | . . . . 125 3025 Electromagnetic 81 | 81 . . . . . Impact . | . . . . . . Slashing . | . . . . . . Piercing . | . . . . . . Highest Corruption . | . . . . . . Average Corruption . | . . . . . . Corruption Purged . | . . . . . . Corruption Blocked . | . . . . . . Overload Shots . | . . . . . . Overflow Damage 96 | . 4 . . . 92 Projectiles 4 | . 4 . . . . Explosions 92 | . . . . . 92 Melee . | . . . . . . Knockbacks . | . . . . . . Impact . | . . . . . . Kinetic . | . . . . . . Secondary . | . . . . . . Self-Inflicted Damage 74 | . . . . . 74 Shots 2 | . . . . . 2 Rammed 1 | . . . . . 1 Targets Rammed 1 | . . . . . 1 Kicked . | . . . . . . Crushed . | . . . . . . Highest Temperature 250 | . 234 250 . 60 168 Average Temperature 79 | . 80 119 . 35 61 Received Heat Transfer 1203 | . 231 . . . 972 Effects 3 | . . 3 . . . Interference 3 | . . 3 . . . Siege Activations . | . . . . . . Martial Activations . | . . . . . . Shielding Activations . | . . . . . . Robots Disrupted . | . . . . . . Combat Hostiles . | . . . . . . Robots Corrupted . | . . . . . . Combat Hostiles . | . . . . . . Parts Fried . | . . . . . . Impact Corruptions . | . . . . . . Robots Melted . | . . . . . . Combat Hostiles . | . . . . . . Parts Melted 3 | . 3 . . . . Heat Transferred 1593 | . 1110 185 . . 298 Parts Sabotaged . | . . . . . . Parts Stolen . | . . . . . . Parts Stripped . | . . . . . . Power Chain Reactions . | . . . . . . Alert | -11 -10 -10 -10 -9 -8 ------- Run | Yrd Mat Min Exi Min Mat Maximum Alert Level 3 | . . . . . 3 Low Security (%) 87 | 100 100 100 . 100 42 Level 1 2 | . . . . . 11 Level 2 1 | . . . . . 5 Level 3 8 | . . . . . 39 Level 4 . | . . . . . . Level 5 . | . . . . . . High Security . | . . . . . . Max Security . | . . . . . . Peak Influence 878 | 10 50 40 . 9 878 Initial 7 | . . 7 . . . Average 101 | 1 11 5 . . 435 Influence Increases 1465 | 30 217 86 . 14 1118 Destroy 0b10 Robot/C 600 | . 140 60 . . 400 Destroy 0b10 Robot/NC 130 | 30 30 . . 10 60 Destroy Leader 138 | . 46 10 . . 82 Allied During Kill 1 | . . 1 . . . Disable Machine 90 | . . 15 . . 75 Anti-Garrison Action 150 | . . . . . 150 Destroy Structure 146 | . 1 . . 4 141 Lose Combat Pursuer 210 | . . . . . 210 Influence Decreases 663 | 30 196 97 10 14 316 Entered New Map 24 | . . 14 10 . . Time Decay 489 | 30 196 57 . . 206 Lost Part 130 | . . 6 . 14 110 Lost Ally 20 | . . 20 . . . Squads Dispatched 9 | . 2 1 . . 6 Investigation 2 | . 1 . . . 1 Extermination . | . . . . . . Reinforcement 3 | . 1 . . . 2 Assault 4 | . . 1 . . 3 Garrison . | . . . . . . Intercept . | . . . . . . Searches Triggered . | . . . . . . Construction Impeded 1 | . . . . . 1 Haulers Reinforced . | . . . . . . Active Scanning Responses . | . . . . . . Cargo Convoy Interrupts . | . . . . . . Stealth | -11 -10 -10 -10 -9 -8 --------- Run | Yrd Mat Min Exi Min Mat Distress Signals 4 | . 1 . . . 3 Communications Jammed . | . . . . . . Distress Signals . | . . . . . . Times Spotted 71 | . 14 2 . 1 54 Peak Tracking Total 16 | . 2 2 . 1 16 Tactical Retreats 4 | . . . . . 4 Traps | -11 -10 -10 -10 -9 -8 ------- Run | Yrd Mat Min Exi Min Mat Traps Triggered 1 | . . . . . 1 Indirectly . | . . . . . . Trap Hack Attempts . | . . . . . . Triggered . | . . . . . . Disarmed . | . . . . . . Reprogrammed . | . . . . . . Reused . | . . . . . . Traps Extracted . | . . . . . . Installed . | . . . . . . Triggered . | . . . . . . Machines | -11 -10 -10 -10 -9 -8 ---------- Run | Yrd Mat Min Exi Min Mat Machines Disabled 7 | . . 1 . . 6 Max in Single Turn 2 | . . . . . 2 Garrison Access 1 | . . . . . 1 Machines Repaired . | . . . . . . Machines Dismantled . | . . . . . . Machines Sabotaged . | . . . . . . Overloaded Fab Kills . | . . . . . . Hacking | -11 -10 -10 -10 -9 -8 --------- Run | Yrd Mat Min Exi Min Mat Machines Accessed 1 | . . . 1 . . Terminals . | . . . . . . Fabricators . | . . . . . . Repair Stations . | . . . . . . Recycling Units . | . . . . . . Scanalyzers . | . . . . . . Garrison Access . | . . . . . . Total Hacks 1 | . . . 1 . . Successful 1 | . . . 1 . . Failed . | . . . . . . Catastrophic . | . . . . . . Database Lockouts . | . . . . . . Manual . | . . . . . . Terminals . | . . . . . . Fabricators . | . . . . . . Repair Stations . | . . . . . . Recycling Units . | . . . . . . Scanalyzers . | . . . . . . Garrison Access . | . . . . . . Terminal Hacks 1 | . . . 1 . . Record 1 | . . . 1 . . Fabricator Hacks . | . . . . . . Repair Station Hacks . | . . . . . . Recycling Unit Hacks . | . . . . . . Scanalyzer . | . . . . . . Garrison Access Hacks . | . . . . . . Unauthorized Hacks . | . . . . . . Terminals . | . . . . . . Fabricators . | . . . . . . Repair Stations . | . . . . . . Recycling Units . | . . . . . . Scanalyzers . | . . . . . . Garrison Access . | . . . . . . Data Cores Recovered 1 | . 1 . . . . Used . | . . . . . . Hacking Detections . | . . . . . . Full Trace Events . | . . . . . . Feedback Events . | . . . . . . Feedback Blocked . | . . . . . . Robot Schematics Acquired . | . . . . . . Robots Built . | . . . . . . Authchips . | . . . . . . Time . | . . . . . . Total Robot Build Rating . | . . . . . . Part Schematics Acquired . | . . . . . . Parts Built . | . . . . . . Authchips . | . . . . . . Time . | . . . . . . Total Part Build Rating . | . . . . . . Part Studies Acquired . | . . . . . . Parts Repaired . | . . . . . . Time . | . . . . . . Parts Recycled . | . . . . . . Recycled Matter . | . . . . . . Retrieved Matter . | . . . . . . Retrieved Components . | . . . . . . Parts Scanalyzed . | . . . . . . Part Schematics Acquired . | . . . . . . Parts Damaged . | . . . . . . Bothacking | -11 -10 -10 -10 -9 -8 ------------ Run | Yrd Mat Min Exi Min Mat Used RIF Installer . | . . . . . . Robots Hacked . | . . . . . . Non-combat . | . . . . . . Combat . | . . . . . . Robot Hacks Applied . | . . . . . . Relay Couplers Released 2 | . . . . . 2 Machine Destruction 2 | . . . . . 2 Fabnet Peak Effective % . | . . . . . . Robots Rewired . | . . . . . . Allies Hacked . | . . . . . . Hacks Repelled . | . . . . . . Allies | -11 -10 -10 -10 -9 -8 -------- Run | Yrd Mat Min Exi Min Mat Total Allies 1 | . . 1 . . . Largest Group 1 | . . 1 . . . Highest-Rated Group 31 | . . 31 . . . Highest-Rated Ally 31 | . . 31 . . . Total Orders . | . . . . . . Ally Attacks 3 | . . 3 . . . Total Damage 42 | . . 42 . . . Kills 1 | . . 1 . . . Allies Corrupted . | . . . . . . Allies Melted . | . . . . . . Intel | -11 -10 -10 -10 -9 -8 ------- Run | Yrd Mat Min Exi Min Mat Active Infowar (turns) 399 | 20 175 . . . 204 Optics 74 | . . . . . 74 Sensors 130 | . . . . . 130 Seismic 195 | 20 175 . . . . Robot Analysis Total . | . . . . . . Derelict Logs Recovered 1 | . . 1 . . . Drone Launches . | . . . . . . Drone Recoveries . | . . . . . . Exploration | -11 -10 -10 -10 -9 -8 ------------- Run | Yrd Mat Min Exi Min Mat Turns Passed 3157 | 152 1012 395 750 322 526 Spaces Moved 2013 | 83 555 232 466 292 385 Core 94 | 19 . . . . 75 Treads 1543 | 64 555 232 466 85 141 Legs . | . . . . . . Wheels 376 | . . . . 207 169 Hover . | . . . . . . Flight . | . . . . . . Fastest Speed 50 | 50 160 160 160 80 50 Average Speed 141 | 142 160 160 160 103 112 Slowest Speed 400 | 200 160 160 160 160 400 Overloaded Moves . | . . . . . . Propulsion Burnouts . | . . . . . . Robots Hopped . | . . . . . . Potential Cave-ins . | . . . . . . Cave-ins Triggered . | . . . . . . Exploration Rate (%) 54 | 6 69 55 88 69 42 Regions Visited 5 Branch Regions 3 Pre-discovered Areas . | . . . . . . Known Exits Taken 4 | . 1 1 1 1 . Unknown Exits Taken 1 | 1 . . . . . Scrap Searched 1 | . . 1 . . . Spaces Dug . | . . . . . . Terrain Destroyed 178 | . . . . 9 169 Melee . | . . . . . . Projectile 3 | . . . . . 3 AOE 175 | . . . . 9 166 Terrain Rammed . | . . . . . . Walls Destroyed . | . . . . . . Machines Disabled . | . . . . . . Actions | -11 -10 -10 -10 -9 -8 --------- Run | Yrd Mat Min Exi Min Mat Total 2182 | 100 618 247 471 306 440 Wait 12 | . 5 . . 4 3 Move 2008 | 82 554 231 465 291 385 Hop . | . . . . . . Pick Up 16 | 3 5 5 . 1 2 Fast Attach 20 | 6 . . . . 14 Attach 8 | 1 . 2 . 3 2 Detach 2 | . 1 . . . 1 Swap 5 | 1 3 . . 1 . Drop 11 | . 2 3 . 2 4 Fire 93 | 7 48 6 . 4 28 Melee . | . . . . . . Ram 1 | . . . . . 1 Kick . | . . . . . . Crush . | . . . . . . Escape Stasis . | . . . . . . Rewire 6 | . . . 6 . . Trap . | . . . . . . Miscellaneous . | . . . . . . Route ------- -11/Scrapyard -10/Materials (discovered 5 exits: [*Mat x2] / *Min x2 / [*Sub]) -10/Mines -10/Exiles -9/Mines -8/Materials (discovered 1 exit: *Fac) History --------- Turn | Location | Event 28 | -11/Scrapyard | Discovered new exit (range 14) 153 | -11/Scrapyard | Entered Materials 304 | -10/Materials | Build established: Mutant 304 | -10/Materials | Discovered new exit (range 14) 576 | -10/Materials | Discovered new exit (range 6) 622 | -10/Materials | Discovered new exit (range 7) 788 | -10/Materials | Discovered new exit (range 14) 853 | -10/Materials | Derelicts attacked the area 913 | -10/Materials | Discovered new exit (range 13) 1155 | -10/Materials | Identified exit to Mines 1165 | -10/Materials | Entered Mines 1296 | -10/Mines | Met a Derelict testing a Signal Generator 1343 | -10/Mines | Learned 2 Materials zone layouts 1552 | -10/Mines | Deemed a non-threat by the Exiles lab entrance 1553 | -10/Mines | Discovered new exit (range 5) 1558 | -10/Mines | Identified exit to Exiles 1560 | -10/Mines | Entered Exiles 1560 | -10/Exiles | Found Exiles lab destroyed 2282 | -10/Exiles | Discovered new exit (range 14) 2309 | -10/Exiles | Identified exit to Mines 2310 | -10/Exiles | Entered Mines 2318 | -9/Mines | Assembled infested the area 2362 | -9/Mines | Found a damaged Exp. Sensor Array with a note attached 2366 | -9/Mines | Found Prototype Device 2450 | -9/Mines | Core integrity fell below 50% 2460 | -9/Mines | Core integrity fell below 20% 2488 | -9/Mines | Lost 4 parts (1p1n2w) 2621 | -9/Mines | Discovered new exit (range 15) 2631 | -9/Mines | Identified exit to Materials 2632 | -9/Mines | Entered Materials 2632 | -8/Materials | Evolved 4 slots: Propulsion x1, Utility x1, Weapon x2 2632 | -8/Materials | Identified Exp. Sensor Array 2859 | -8/Materials | Core integrity fell below 50% 2969 | -8/Materials | Destroyed 9 combat bots 3013 | -8/Materials | Destroyed 8 combat bots 3023 | -8/Materials | Lost 5 parts (1n4w) 3032 | -8/Materials | First assault squad dispatched 3087 | -8/Materials | Discovered new exit (range 13) 3119 | -8/Materials | Identified exit to Factory 3147 | -8/Materials | Core integrity fell below 20% 3158 | -8/Materials | Destroyed by Y-45 Defender with Heavy Assault Rifle Last Messages --------------- 03038_ The unstable cave ceiling collapses. 03038_ K-01 Serf collects debris. 03039_ U-05 Engineer builds a Wall. 03040_ K-01 Serf collects debris. 03040_ U-05 Engineer builds a Wall. 03041_ K-01 Serf collects debris. 03048_ The unstable cave ceiling collapses. 03048_ K-01 Serf collects debris. 03051_ U-05 Engineer builds a Wall. 03052_ K-01 Serf collects debris. 03084_ Acquired Adv. Visual Processing Unit. 03087_ EXIT=FOUND 03119_ EXIT=IDENTIFIED: FACTORY 03143_ Med. Treads destroyed. 03149_ Acquired Imp. Signal Interpreter. 03154_ C-45 Heavy ARC bursts open, deploying its payload. 03154_ G-50 Soldier unfolds itself. 03154_ G-47 Trooper unfolds itself. 03154_ M-28 Smith unfolds itself. Map ----- +----------------------------------------------------+ | ????????????????????????????????????????????? | | ????????????????????????????????????????????? | | ????????????????????????????????????????????? | | ????????????????????????????????????????????? | | ????????????????????????????????????????????? | | ????????????????????????????????????????????? | | ????????????????????????????????????????????? | | ????????????????????????????????????????????? | | ????????????????????????????????????????????? | | ????????????????????????????????????????????? | | ????????????????????????????????????????????? | | ????????????????????????????????????????????? | | ????????????????????????????????????????????? | | ????????????????????????????????????????????? | | ????????????????????????????????????????????? | | ????????????????????????????????????????????? | | ????????????????????????????????????????????? | | ????????????????????????????????????????????? | | ????????????????????????????????????????????? | | ????????????????????????????????????????????? | | ?????????????##?????????????????????????????? | | ????????????## ########?????????????????????? | | ????????????# = ! #?????????????????????? | | ????????????# !! #?????????????????????? | | ????????????# !gg #????????????????????"" | | ????????????# Y @ #??????????????????? "" | | ????????????# """g""" #???????????????????? | | ????????????# """%""" #???????????????????? | | ????????????# """g""" #????????????????????"" | | ????????????# #?????????????????# "" | | ????????????######+#################????# "" | | ??????????????# #???# "" | | ??????????????# < #???# "" | | ??????????????# #???# | | ??????????????## ################ #???# | | ???????????????# #??????????????? #????? "T | | ???????????????# #??????????????# #??????## | | ???????????????# #??????????????# #???????# | | ???????????????# #??????????????# #??????## | | ???????????????# #??????????????+ #??????# | | ???????????????# #??????????????# #?????## | | ????##########?# #??????????????# #?????# ! | | ????# #?# #??????????????# #?????# ! | | ????# """"" ### ###????????????# #???### | | ????# """"" # ############## ###### | | ????#= """"" # ## | | ????# + T ## #### | | ????# "S # # | | ????# """ # ############## | | ????# "" ## ##????????????# == | +----------------------------------------------------+ Best States ------------- Heat Dissipation 31 Energy Generation 18 Energy Capacity 250 Matter Stores 300 Matter Capacity 300 Sight Range 20 Robot Scan Range 20 Terrain Scan Density 10 Evasion (%) 50 Recoil Reduction 3 Item Schematics ----------------- None Robot Schematics ------------------ None Fabricated ------------ Nothing Repaired ---------- Nothing Studied --------- None Alien Tech Used ----------------- None Achievements -------------- None Challenges ------------ None Game ------ Seed ArmageddonMultinovaWell Manual? 0 Play Time 00:14:52 Cumulative 114.1 hours Start 2026.07.03 @ 19:40:50 End 2026.07.03 @ 19:54:38 Sessions 1 Manual Loads 0 Difficulty Rogue Special Mode None Game No. 242 Rogue 242 Adventurer 0 Explorer 0 Win Type - Total 0 Types 0/0/0/0/0/0/0/0/0/0 Lore% 50 Gallery% 51 Achievement% 41 Wizard Run 0 Options --------- Layout 2 ASCII 0 Keyboard 1 Movement Arrows Keybinds 0 Fullscreen 1 Font 24/Smallcaps Map View 50x44 Zoom Use 0% Tactical HUD 1 Map Filters NONE Filters NONE Steam 1 RUN: 9a2520c6-19c8-4a6f-8f1d-221dea7fda84